fUSD/lending_fUSD_20260613
["ID","MTS","AMOUNT","RATE_DAILY","PERIOD"]
[424943542,1781312636000,-1030.78838038,7.592e-05,2]
[424943544,1781312636000,-1030.78838038,7.592e-05,2]
[424943543,1781312636000,-1030.78838038,7.592e-05,2]
[424943546,1781312636000,-830.04154556,7.592e-05,2]
[424943545,1781312636000,-1030.78838038,7.592e-05,2]
[424943540,1781312636000,-1030.78838038,7.592e-05,2]
[424943548,1781312637000,-1030.78838038,7.592e-05,2]
[424943547,1781312637000,-200.74683482,7.592e-05,2]
[424943549,1781312637000,-1030.78838038,7.592e-05,2]
[424943550,1781312637000,-1030.78838038,7.592e-05,2]
[424943552,1781312637000,-1032.73268952,7.592e-05,2]
[424943553,1781312637000,-1032.73268952,7.592e-05,2]
[424943551,1781312637000,-1030.78838038,7.592e-05,2]
[424943554,1781312637000,-1032.73268952,7.592e-05,2]
[424943555,1781312637000,-1032.73268952,7.592e-05,2]
[424943557,1781312637000,-512.43619606,7.592e-05,2]
[424943556,1781312637000,-1032.73268952,7.592e-05,2]
[424943558,1781312638000,-520.29649346,7.592e-05,2]
[424943559,1781312638000,-1032.73268952,7.592e-05,2]
[424943560,1781312638000,-1032.73268952,7.592e-05,2]
[424943562,1781312638000,-1032.73268952,7.592e-05,2]
[424943565,1781312638000,-1032.73268952,7.592e-05,2]
[424943563,1781312638000,-1032.73268952,7.592e-05,2]
[424943564,1781312638000,-1032.73268952,7.592e-05,2]
[424943566,1781312638000,-1032.73268952,7.592e-05,2]
[424943561,1781312638000,-1032.73268952,7.592e-05,2]
[424943569,1781312639000,-847.62338866,7.592e-05,2]
[424943570,1781312639000,-1032.73268952,7.592e-05,2]
[424943568,1781312639000,-185.10930086,7.592e-05,2]
[424943567,1781312639000,-1032.73268952,7.592e-05,2]
[424943571,1781312640000,-1032.73268952,7.592e-05,2]
[424943572,1781312640000,-1032.73268952,7.592e-05,2]
[424943573,1781312640000,-1032.73268952,7.592e-05,2]
[424943575,1781312640000,-1032.73268952,7.592e-05,2]
[424943576,1781312640000,-1032.73268952,7.592e-05,2]
[424943577,1781312640000,-1032.73268952,7.592e-05,2]
[424943578,1781312640000,-890.51509518,7.592e-05,2]
[424943574,1781312640000,-1032.73268952,7.592e-05,2]
[424943580,1781312641000,-1032.73268952,7.592e-05,2]
[424943581,1781312641000,-1032.73268952,7.592e-05,2]
[424943582,1781312641000,-1032.73268952,7.592e-05,2]
[424943584,1781312641000,-1032.73268952,7.592e-05,2]
[424943583,1781312641000,-1032.73268952,7.592e-05,2]
[424943579,1781312641000,-142.21759434,7.592e-05,2]
[424943586,1781312641000,-1032.73268952,7.592e-05,2]
[424943587,1781312641000,-1032.73268952,7.592e-05,2]
[424943589,1781312641000,-1120.0115134,7.592e-05,2]
[424943588,1781312641000,-160.0,7.592e-05,2]
[424943590,1781312641000,-315.9093761,7.592e-05,2]
[424943585,1781312641000,-1032.73268952,7.592e-05,2]
[424943591,1781312644000,-804.1021373,7.592e-05,2]
[424943592,1781312644000,-1120.0115134,7.592e-05,2]
[424943593,1781312644000,-1120.0115134,7.592e-05,2]
[424943594,1781312644000,-1120.0115134,7.592e-05,2]
[424943595,1781312644000,-1120.0115134,7.592e-05,2]
[424943598,1781312644000,-1120.0115134,7.592e-05,2]
[424943597,1781312644000,-1120.0115134,7.592e-05,2]
[424943600,1781312644000,-283.49062451,7.592e-05,2]
[424943601,1781312644000,-572.32664439,7.592e-05,2]
[424943599,1781312644000,-500.0,7.592e-05,2]
[424943596,1781312644000,-1120.0115134,7.592e-05,2]
[424943603,1781312653000,-1120.0115134,7.592e-05,2]
[424943602,1781312653000,-547.68486901,7.592e-05,2]
[424943606,1781312653000,-254.230618,7.592e-05,2]
[424943604,1781312653000,-500.0,7.592e-05,2]
[424943605,1781312653000,-394.61906584,7.592e-05,2]
[424943607,1781312683000,-1986.50979803,8.351e-05,2]
[424943608,1781312693000,-500.0,7.592e-05,2]
[424943609,1781312693000,-500.0,7.592e-05,2]
[424943611,1781312693000,-500.0,7.592e-05,2]
[424943612,1781312693000,-500.0,7.592e-05,2]
[424943610,1781312693000,-500.0,7.592e-05,2]
[424943614,1781312693000,-220.62863698,7.592e-05,2]
[424943615,1781312693000,-500.0,8.35e-05,2]
[424943616,1781312693000,-394.61906584,8.35e-05,2]
[424943617,1781312693000,-341.63046158,8.351e-05,2]
[424943613,1781312693000,-500.0,7.592e-05,2]
[424943619,1781312694000,-633.2636339,8.351e-05,2]
[424943620,1781312694000,-250.0,8.666e-05,2]
[424943618,1781312694000,-500.0,8.351e-05,2]
[424943621,1781312694000,-500.0,8.666e-05,2]
[424943623,1781312694000,-195.16018006,8.801e-05,2]
[424943625,1781312694000,-500.0,8.801e-05,2]
[424943624,1781312694000,-351.48314979,8.801e-05,2]
[424943628,1781312694000,-541.03818123,8.801e-05,2]
[424943629,1781312694000,-1128.00338115,8.802e-05,2]
[424943626,1781312694000,-283.96402718,8.801e-05,2]
[424943622,1781312694000,-160.20928229,8.801e-05,2]
[424943627,1781312694000,-500.0,8.801e-05,2]
[424943633,1781312737000,-73.1396815,8.351e-05,2]
[424943632,1781312737000,-610.3143185,8.35e-05,2]
[424943631,1781312737000,-500.0,8.35e-05,2]
[424943630,1781312737000,-500.0,8.35e-05,2]
[424943634,1781312741000,-86.8603185,8.351e-05,2]
[424943636,1781312741000,-475.61050654,8.577e-05,2]
[424943635,1781312741000,-250.0,8.577e-05,2]
[424943638,1781312749000,-1041.61050654,8.802e-05,2]
[424943637,1781312749000,-24.38949346,8.577e-05,2]
[424943643,1781312789000,-415.6432884,7.994e-05,2]
[424943645,1781312844000,-500.0,8.793e-05,2]
[424943646,1781312844000,-91.92587335,8.802e-05,2]
[424943644,1781312844000,-250.0,8.793e-05,2]
[424943648,1781312847000,-363.9358546,8.802e-05,2]
[424943647,1781312847000,-246.03820485,8.801e-05,2]
[424943649,1781312850000,-463.62431089,7.996e-05,2]
[424943650,1781312858000,-1401.0,7.996e-05,2]
[424943652,1781312897000,-10000.0,7.996e-05,2]
[424943651,1781312897000,-2217.8,7.996e-05,2]
[424943655,1781312919000,-10000.0,7.996e-05,2]
[424943654,1781312919000,-2217.8,7.996e-05,2]
[424943657,1781312927000,-49827.7732566,7.996e-05,2]
[424943656,1781312927000,-172.2267434,7.995e-05,2]
[424943658,1781312931000,-50000.0,7.996e-05,2]
[424943659,1781312934000,-50000.0,7.996e-05,2]
[424943660,1781312935000,-33467.00243251,7.996e-05,2]
[424943661,1781312935000,-16532.99756749,7.996e-05,2]
[424943663,1781312936000,-3318.16823316,7.996e-05,2]
[424943662,1781312936000,-50000.0,7.996e-05,2]
[424943664,1781312937000,-39322.40528085,7.996e-05,2]
[424943665,1781312944000,548.77481902,7.995e-05,2]
[424943673,1781312968000,-500.0,7.995e-05,2]
[424943666,1781312968000,-500.0,7.995e-05,2]
[424943668,1781312968000,-500.0,7.995e-05,2]
[424943667,1781312968000,-500.0,7.995e-05,2]
[424943670,1781312968000,-500.0,7.995e-05,2]
[424943669,1781312968000,-500.0,7.995e-05,2]
[424943671,1781312968000,-500.0,7.995e-05,2]
[424943674,1781312968000,-500.0,7.995e-05,2]
[424943676,1781312968000,-500.0,7.995e-05,2]
[424943672,1781312968000,-500.0,7.995e-05,2]
[424943677,1781312968000,-500.0,7.995e-05,2]
[424943683,1781312968000,-500.0,7.995e-05,2]
[424943681,1781312968000,-500.0,7.995e-05,2]
[424943682,1781312968000,-500.0,7.995e-05,2]
[424943685,1781312968000,-500.0,7.995e-05,2]
[424943680,1781312968000,-500.0,7.995e-05,2]
[424943684,1781312968000,-500.0,7.995e-05,2]
[424943678,1781312968000,-500.0,7.995e-05,2]
[424943679,1781312968000,-500.0,7.995e-05,2]
[424943675,1781312968000,-500.0,7.995e-05,2]
[424943695,1781312969000,-500.0,7.995e-05,2]
[424943701,1781312969000,-500.0,7.995e-05,2]
[424943699,1781312969000,-500.0,7.995e-05,2]
[424943698,1781312969000,-500.0,7.995e-05,2]
[424943696,1781312969000,-500.0,7.995e-05,2]
[424943697,1781312969000,-500.0,7.995e-05,2]
[424943694,1781312969000,-500.0,7.995e-05,2]
[424943690,1781312969000,-500.0,7.995e-05,2]
[424943688,1781312969000,-500.0,7.995e-05,2]
[424943691,1781312969000,-500.0,7.995e-05,2]
[424943700,1781312969000,-500.0,7.995e-05,2]
[424943689,1781312969000,-500.0,7.995e-05,2]
[424943686,1781312969000,-500.0,7.995e-05,2]
[424943687,1781312969000,-500.0,7.995e-05,2]
[424943693,1781312969000,-500.0,7.995e-05,2]
[424943702,1781312969000,-500.0,7.995e-05,2]
[424943692,1781312969000,-500.0,7.995e-05,2]
[424943704,1781312969000,-500.0,7.995e-05,2]
[424943719,1781312969000,987.6421066,7.995e-05,2]
[424943718,1781312969000,987.6421066,7.995e-05,2]
[424943716,1781312969000,987.6421066,7.995e-05,2]
[424943717,1781312969000,987.6421066,7.995e-05,2]
[424943714,1781312969000,-500.0,7.995e-05,2]
[424943703,1781312969000,-500.0,7.995e-05,2]
[424943711,1781312969000,-530.40005075,7.995e-05,2]
[424943715,1781312969000,-500.0,7.995e-05,2]
[424943713,1781312969000,-500.0,7.995e-05,2]
[424943710,1781312969000,-500.0,7.995e-05,2]
[424943709,1781312969000,-500.0,7.995e-05,2]
[424943707,1781312969000,-500.0,7.995e-05,2]
[424943708,1781312969000,-500.0,7.995e-05,2]
[424943705,1781312969000,-500.0,7.995e-05,2]
[424943706,1781312969000,-500.0,7.995e-05,2]
[424943712,1781312969000,-500.0,7.995e-05,2]
[424943720,1781312970000,987.6421066,7.995e-05,2]
[424943721,1781312970000,987.6421066,7.995e-05,2]
[424943724,1781312970000,987.6421066,7.995e-05,2]
[424943723,1781312970000,987.6421066,7.995e-05,2]
[424943722,1781312970000,987.6421066,7.995e-05,2]
[424943725,1781312970000,987.6421066,7.995e-05,2]
[424943728,1781312970000,987.6421066,7.995e-05,2]
[424943727,1781312970000,987.6421066,7.995e-05,2]
[424943729,1781312970000,987.6421066,7.995e-05,2]
[424943726,1781312970000,987.6421066,7.995e-05,2]
[424943730,1781312990000,-500.0,7.995e-05,2]
[424943731,1781312999000,-500.0,7.995e-05,2]
[424943732,1781312999000,-424.165877,7.995e-05,2]
[424943733,1781312999000,-75.834123,7.995e-05,2]
[424943734,1781313004000,-89.11936611,7.995e-05,2]
[424943736,1781313013000,-379.70874807,7.995e-05,2]
[424943735,1781313013000,-500.0,7.995e-05,2]
[424943756,1781313031000,-300.0,8.859e-05,2]
[424943752,1781313031000,-199.5,8.797e-05,2]
[424943751,1781313031000,-263.77887318,8.796e-05,2]
[424943749,1781313031000,-498.2112919,8.796e-05,2]
[424943753,1781313031000,-300.0,8.799e-05,2]
[424943750,1781313031000,-413.90256807,8.796e-05,2]
[424943747,1781313031000,-500.0,8.521e-05,2]
[424943746,1781313031000,-228.72672686,8.219e-05,2]
[424943745,1781313031000,-500.0,8.219e-05,2]
[424943748,1781313031000,-500.0,8.795e-05,2]
[424943754,1781313031000,-14657.21174776,8.802e-05,2]
[424943762,1781313031000,-164.23,9.57e-05,2]
[424943758,1781313031000,-300.0,8.859e-05,2]
[424943768,1781313031000,-3709.51,9.67e-05,2]
[424943770,1781313031000,-300.0,9.675e-05,2]
[424943766,1781313031000,-299.99,9.67e-05,2]
[424943761,1781313031000,-2668.8216073,9.2e-05,2]
[424943755,1781313031000,-160.0,8.805e-05,2]
[424943763,1781313031000,-538.02,9.578e-05,2]
[424943759,1781313031000,-150.0,8.889e-05,2]
[424943764,1781313031000,-435.84,9.67e-05,2]
[424943760,1781313031000,-250.0,9.041e-05,2]
[424943757,1781313031000,-300.0,8.859e-05,2]
[424943793,1781313032000,-65.76954148,0.00010199,2]
[424943789,1781313032000,-230541.77427256,0.00010199,2]
[424943790,1781313032000,-1254.41808677,0.00010199,2]
[424943787,1781313032000,-148379.96123099,0.00010199,2]
[424943772,1781313032000,-250.0,9.675e-05,2]
[424943786,1781313032000,-157834.04231754,0.00010199,2]
[424943781,1781313032000,-49470.0,0.0001,2]
[424943785,1781313032000,-1900.52,0.00010054,2]
[424943783,1781313032000,-848.14725022,0.00010021,2]
[424943779,1781313032000,-318.15677139,0.0001,2]
[424943774,1781313032000,-318.15677139,0.0001,2]
[424943776,1781313032000,-318.15677139,0.0001,2]
[424943788,1781313032000,-184470.48386649,0.00010199,2]
[424943806,1781313038000,-51.51381232,0.00010199,2]
[424943807,1781313038000,-14374.04126919,0.00010199,2]
[424943811,1781313040000,-439.138,0.00010199,2]
[424943844,1781313041000,-500.0,0.00011,2]
[424943849,1781313041000,-1487.64924748,0.00011099,2]
[424943848,1781313041000,-1487.64924748,0.00011099,2]
[424943843,1781313041000,-618.74,0.00011,2]
[424943842,1781313041000,-1208.55671769,0.00010986,2]
[424943837,1781313041000,-1062.12,0.00010858,2]
[424943835,1781313041000,-1683.89,0.00010821,2]
[424943840,1781313041000,-769.89931588,0.000109,2]
[424943841,1781313041000,-166.66,0.00010959,2]
[424943839,1781313041000,-769.8993159,0.000109,2]
[424943838,1781313041000,-200.0,0.00010874,2]
[424943836,1781313041000,-701.25,0.00010837,2]
[424943833,1781313041000,-2395.5,0.0001065,2]
[424943834,1781313041000,-10393.84399895,0.0001071,2]
[424943845,1781313041000,-166.66,0.00011068,2]
[424943830,1781313041000,-164.23,0.00010527,2]
[424943822,1781313041000,-14212.27,0.00010299,2]
[424943832,1781313041000,-27203.8197,0.000106,2]
[424943815,1781313041000,-108.62591927,0.00010199,2]
[424943816,1781313041000,-762480.23168339,0.00010199,2]
[424943818,1781313041000,-161.58083644,0.00010298,2]
[424943819,1781313041000,-250.0,0.00010298,2]
[424943847,1781313041000,-1487.64924748,0.00011099,2]
[424943823,1781313041000,-5200.7321541,0.000103,2]
[424943831,1781313041000,-578.5051,0.000106,2]
[424943820,1781313041000,-9999.99,0.00010299,2]
[424943824,1781313041000,-5530.0,0.000103,3]
[424943826,1781313041000,-209595.0,0.00010327,2]
[424943828,1781313041000,-5530.0,0.000105,5]
[424943825,1781313041000,-415.6432884,0.00010326,2]
[424943827,1781313041000,-109173.5710815,0.00010327,2]
[424943829,1781313041000,-192.66,0.00010522,2]
[424943817,1781313041000,-6181.8485415,0.00010277,2]
[424943821,1781313041000,-150.99,0.00010299,2]
[424943846,1781313041000,-1487.64924752,0.00011099,2]
[424943853,1781313041000,-166.66,0.00011178,2]
[424943871,1781313041000,-675.36,0.00011374,2]
[424943874,1781313041000,-760.430438,0.00011374,2]
[424943870,1781313041000,-661.65,0.00011374,2]
[424943872,1781313041000,-760.430438,0.00011374,2]
[424943873,1781313041000,-760.430438,0.00011374,2]
[424943875,1781313041000,-760.430438,0.00011374,2]
[424943868,1781313041000,-150.0,0.00011348,2]
[424943876,1781313041000,-166.66,0.00011397,2]
[424943879,1781313041000,-166.66,0.00011507,2]
[424943878,1781313041000,-150.0,0.00011484,2]
[424943850,1781313041000,-1487.64924748,0.00011099,2]
[424943881,1781313041000,-1111.64,0.000116,2]
[424943882,1781313041000,-661.65,0.00011658,2]
[424943883,1781313041000,-1487.64924748,0.00011787,2]
[424943877,1781313041000,-164.23,0.00011484,2]
[424943869,1781313041000,-150.0,0.00011374,2]
[424943880,1781313041000,-769.89931588,0.00011562,2]
[424943865,1781313041000,-500.0,0.00011348,2]
[424943862,1781313041000,-500.0,0.00011348,2]
[424943852,1781313041000,-165.24,0.00011125,2]
[424943851,1781313041000,-73588.59,0.00011115,2]
[424943856,1781313041000,-151.0,0.00011252,2]
[424943855,1781313041000,-152.0,0.00011252,2]
[424943857,1781313041000,-500.0,0.0001128,2]
[424943859,1781313041000,-500.0,0.0001128,4]
[424943854,1781313041000,-15282.96355946,0.0001119,2]
[424943861,1781313041000,-1900.52,0.0001131,2]
[424943858,1781313041000,-500.0,0.0001128,3]
[424943863,1781313041000,-500.0,0.00011348,2]
[424943867,1781313041000,-600.0,0.00011348,2]
[424943866,1781313041000,-500.0,0.00011348,2]
[424943860,1781313041000,-166.66,0.00011288,2]
[424943864,1781313041000,-500.0,0.00011348,2]
[424943903,1781313042000,-164.23,0.00012441,2]
[424943901,1781313042000,-736.24,0.00012404,2]
[424943902,1781313042000,-736.24,0.00012432,2]
[424943899,1781313042000,-736.24,0.00012375,2]
[424943900,1781313042000,-2500.0,0.00012383,2]
[424943906,1781313042000,-1227.0,0.00012489,2]
[424943907,1781313042000,-6076.0,0.00012489,2]
[424943908,1781313042000,-1002.615,0.00012489,2]
[424943909,1781313042000,-151.0,0.000125,2]
[424943898,1781313042000,-736.24,0.00012345,2]
[424943904,1781313042000,-736.24,0.00012458,2]
[424943896,1781313042000,-736.24,0.00012312,2]
[424943888,1781313042000,-736.24,0.00012093,2]
[424943895,1781313042000,-736.24,0.00012277,2]
[424943894,1781313042000,-736.24,0.00012239,2]
[424943893,1781313042000,-769.89931588,0.0001223,2]
[424943892,1781313042000,-661.65,0.00012227,2]
[424943891,1781313042000,-1062.12,0.00012216,2]
[424943890,1781313042000,-736.24,0.00012197,2]
[424943910,1781313042000,-152.0,0.000125,2]
[424943885,1781313042000,-500.0,0.00011881,5]
[424943886,1781313042000,-661.65,0.00011942,2]
[424943887,1781313042000,-736.24,0.00012019,2]
[424943884,1781313042000,-736.24,0.00011841,2]
[424943897,1781313042000,-187.78,0.00012329,2]
[424943905,1781313042000,-736.24,0.00012483,2]
[424943889,1781313042000,-736.24,0.0001215,2]
[424943912,1781313042000,-736.24,0.00012507,2]
[424943911,1781313042000,-9925.78107839,0.00012502,2]
[424943958,1781313042000,-806.58176377,0.00012659,2]
[424943957,1781313042000,-1016.65,0.00012659,2]
[424943937,1781313042000,-22020.66612321,0.00012659,2]
[424943935,1781313042000,-275.0,0.00012658,5]
[424943933,1781313042000,-2000.0,0.00012658,2]
[424943931,1781313042000,-250.0,0.00012658,2]
[424943930,1781313042000,-415.6432884,0.00012658,2]
[424943929,1781313042000,-736.24,0.00012657,2]
[424943928,1781313042000,-736.24,0.00012637,2]
[424943927,1781313042000,-736.24,0.00012617,2]
[424943926,1781313042000,-2484.43245414,0.000126,2]
[424943956,1781313042000,-1628.28175737,0.00012659,2]
[424943924,1781313042000,-244.53780619,0.000126,2]
[424943925,1781313042000,-1536.26294125,0.000126,2]
[424943913,1781313042000,-661.65,0.00012511,2]
[424943915,1781313042000,-736.24,0.00012553,2]
[424943917,1781313042000,-1487.64924748,0.00012565,2]
[424943918,1781313042000,-1900.52,0.00012567,2]
[424943914,1781313042000,-736.24,0.00012531,2]
[424943919,1781313042000,-736.24,0.00012575,2]
[424943920,1781313042000,-2484.43245414,0.0001258,2]
[424943921,1781313042000,-736.24,0.00012597,2]
[424943923,1781313042000,-50627.8838,0.000126,2]
[424943922,1781313042000,-500.0,0.00012599,2]
[424943916,1781313042000,-2484.43245414,0.00012559,2]
[424943959,1781313043000,-90.27453612,0.00012659,2]
[424943965,1781313045000,-67.77489549,0.00012628,2]
[424943967,1781313045000,-512.86000002,0.00012628,2]
[424943966,1781313045000,-463.11319434,0.00012628,2]
[424943969,1781313046000,-23090.92444222,0.00012659,2]
[424943968,1781313046000,-2600.25191015,0.00012628,2]
[424943971,1781313046000,-315.35064524,0.00012659,2]
[424943974,1781313046000,-639.25951587,0.00012659,2]
[424943972,1781313046000,-597.39434932,0.00012659,2]
[424943973,1781313046000,-1570.20000004,0.00012659,2]
[424943970,1781313046000,-947.10927317,0.00012659,2]
[424943999,1781313083000,-500.0,7.995e-05,2]
[424943998,1781313083000,-379.70874807,7.995e-05,2]
[424944000,1781313159000,-500.0,7.995e-05,2]
[424944003,1781313166000,-371.663835,7.995e-05,2]
[424944001,1781313166000,-500.0,7.995e-05,2]
[424944002,1781313166000,-583.47574652,7.995e-05,2]
[424944006,1781313167000,-500.0,7.995e-05,2]
[424944004,1781313167000,-500.0,7.995e-05,2]
[424944005,1781313167000,-500.0,7.995e-05,2]
[424944007,1781313167000,-500.0,7.995e-05,2]
[424944010,1781313167000,-394.14349916,7.995e-05,2]
[424944008,1781313167000,-375.21361979,7.995e-05,2]
[424944009,1781313167000,-481.78767176,7.995e-05,2]
[424944011,1781313167000,-500.0,7.995e-05,2]
[424944012,1781313167000,-353.72581041,7.995e-05,2]
[424944015,1781313213000,-518.59247751,8.769e-05,2]
[424944016,1781313266000,-1157.90484248,8.768e-05,2]
[424944017,1781313288000,-118.5153196,8.768e-05,2]
[424944018,1781313341000,-150.0,8.767e-05,2]
[424944020,1781313394000,-500.0,8.768e-05,2]
[424944024,1781313448000,-185.43505721,8.767e-05,2]
[424944029,1781313501000,-434.97555569,8.767e-05,2]
[424944030,1781313555000,-173.05108037,8.766e-05,2]
[424944038,1781313608000,-150.0,8.503e-05,2]
[424944047,1781313794000,-164.23,8.501e-05,2]
[424944049,1781313845000,-510.1087088,8.59e-05,2]
[424944050,1781313899000,-304.48288898,8.59e-05,2]
[424944051,1781313901000,157.0,0.00021,120]
[424944052,1781313952000,-300.0,8.591e-05,2]
[424944053,1781313952000,-155.89626902,8.591e-05,2]
[424944054,1781314005000,-65.75309721,8.591e-05,2]
[424944056,1781314008000,-135.48452354,8.591e-05,2]
[424944055,1781314008000,-250.0,8.591e-05,2]
[424944059,1781314058000,-364.51547646,8.591e-05,2]
[424944060,1781314112000,-1011.03249429,8.591e-05,2]
[424944065,1781314166000,-213.13802229,8.59e-05,2]
[424944066,1781314220000,-2395.5,8.531e-05,2]
[424944080,1781314232000,-1000.92216935,8.59e-05,2]
[424944084,1781314232000,-1000.92216935,8.59e-05,2]
[424944085,1781314232000,-1000.92216935,8.59e-05,2]
[424944083,1781314232000,-1000.92216935,8.59e-05,2]
[424944082,1781314232000,-1000.92216935,8.59e-05,2]
[424944079,1781314232000,-1000.92216935,8.59e-05,2]
[424944077,1781314232000,-1000.92216935,8.59e-05,2]
[424944078,1781314232000,-1000.92216935,8.59e-05,2]
[424944087,1781314232000,-1000.92216935,8.59e-05,2]
[424944086,1781314232000,-1000.92216935,8.59e-05,2]
[424944076,1781314232000,-1000.92216935,8.59e-05,2]
[424944075,1781314232000,-459.7902193,8.59e-05,2]
[424944074,1781314232000,-527.08316082,8.59e-05,2]
[424944070,1781314232000,-357.07609616,8.59e-05,2]
[424944073,1781314232000,-14.04878923,8.59e-05,2]
[424944072,1781314232000,-392.95121077,8.59e-05,2]
[424944071,1781314232000,-607.97095858,8.59e-05,2]
[424944081,1781314232000,-1000.92216935,8.59e-05,2]
[424944088,1781314232000,-1000.92216935,8.59e-05,2]
[424944102,1781314232000,-1000.92216935,8.59e-05,2]
[424944091,1781314232000,-1000.92216935,8.59e-05,2]
[424944089,1781314232000,-1000.92216935,8.59e-05,2]
[424944104,1781314232000,-1000.92216935,8.59e-05,2]
[424944109,1781314232000,-166.04289711,8.59e-05,2]
[424944106,1781314232000,-1000.92216935,8.59e-05,2]
[424944105,1781314232000,-1000.92216935,8.59e-05,2]
[424944101,1781314232000,-1000.92216935,8.59e-05,2]
[424944103,1781314232000,-1000.92216935,8.59e-05,2]
[424944107,1781314232000,-290.15702944,8.59e-05,2]
[424944099,1781314232000,-1000.92216935,8.59e-05,2]
[424944108,1781314232000,-710.76513991,8.59e-05,2]
[424944095,1781314232000,-1000.92216935,8.59e-05,2]
[424944097,1781314232000,-1000.92216935,8.59e-05,2]
[424944098,1781314232000,-1000.92216935,8.59e-05,2]
[424944096,1781314232000,-1000.92216935,8.59e-05,2]
[424944092,1781314232000,-1000.92216935,8.59e-05,2]
[424944093,1781314232000,-1000.92216935,8.59e-05,2]
[424944090,1781314232000,-1000.92216935,8.59e-05,2]
[424944094,1781314232000,-1000.92216935,8.59e-05,2]
[424944100,1781314232000,-1000.92216935,8.59e-05,2]
[424944111,1781314233000,-564.35756694,8.59e-05,2]
[424944110,1781314233000,-834.87927224,8.59e-05,2]
[424944123,1781314238000,-863.43539759,8.59e-05,2]
[424944122,1781314238000,-436.56460241,8.59e-05,2]
[424944125,1781314238000,-510.07103254,8.59e-05,2]
[424944124,1781314238000,-137.48677176,8.59e-05,2]
[424944193,1781314260000,-490.85113681,8.59e-05,2]
[424944195,1781314260000,-1000.92216935,8.59e-05,2]
[424944194,1781314260000,-1000.92216935,8.59e-05,2]
[424944197,1781314260000,-300.0,8.59e-05,2]
[424944196,1781314260000,-103.79356524,8.59e-05,2]
[424944199,1781314260000,-1000.92216935,8.59e-05,2]
[424944198,1781314260000,-597.12860411,8.59e-05,2]
[424944200,1781314260000,-1000.92216935,8.59e-05,2]
[424944202,1781314260000,-1000.92216935,8.59e-05,2]
[424944203,1781314260000,-1000.92216935,8.59e-05,2]
[424944201,1781314260000,-1000.92216935,8.59e-05,2]
[424944204,1781314260000,-1000.92216935,8.59e-05,2]
[424944209,1781314260000,-1000.92216935,8.59e-05,2]
[424944205,1781314260000,-1000.92216935,8.59e-05,2]
[424944208,1781314260000,-1000.92216935,8.59e-05,2]
[424944216,1781314260000,-1000.92216935,8.59e-05,2]
[424944215,1781314260000,-1000.92216935,8.59e-05,2]
[424944214,1781314260000,-1000.92216935,8.59e-05,2]
[424944213,1781314260000,-1000.92216935,8.59e-05,2]
[424944217,1781314260000,-412.1947784,8.59e-05,2]
[424944207,1781314260000,-1000.92216935,8.59e-05,2]
[424944212,1781314260000,-1000.92216935,8.59e-05,2]
[424944206,1781314260000,-1000.92216935,8.59e-05,2]
[424944210,1781314260000,-1000.92216935,8.59e-05,2]
[424944211,1781314260000,-1000.92216935,8.59e-05,2]
[424944229,1781314261000,-1000.92216935,8.59e-05,2]
[424944237,1781314261000,-1000.92216935,8.59e-05,2]
[424944234,1781314261000,-1000.92216935,8.59e-05,2]
[424944232,1781314261000,-1000.92216935,8.59e-05,2]
[424944230,1781314261000,-1000.92216935,8.59e-05,2]
[424944231,1781314261000,-1000.92216935,8.59e-05,2]
[424944228,1781314261000,-1000.92216935,8.59e-05,2]
[424944222,1781314261000,-1000.92216935,8.59e-05,2]
[424944220,1781314261000,-1000.92216935,8.59e-05,2]
[424944226,1781314261000,-1000.92216935,8.59e-05,2]
[424944236,1781314261000,-1000.92216935,8.59e-05,2]
[424944225,1781314261000,-1000.92216935,8.59e-05,2]
[424944227,1781314261000,-1000.92216935,8.59e-05,2]
[424944223,1781314261000,-1000.92216935,8.59e-05,2]
[424944224,1781314261000,-1000.92216935,8.59e-05,2]
[424944221,1781314261000,-1000.92216935,8.59e-05,2]
[424944219,1781314261000,-1000.92216935,8.59e-05,2]
[424944218,1781314261000,-588.72739095,8.59e-05,2]
[424944233,1781314261000,-1000.92216935,8.59e-05,2]
[424944247,1781314261000,-945.31538218,8.59e-05,2]
[424944238,1781314261000,-1000.92216935,8.59e-05,2]
[424944255,1781314261000,-741.73652476,8.77e-05,2]
[424944253,1781314261000,-675.36,8.729e-05,2]
[424944254,1781314261000,-698.77983011,8.77e-05,2]
[424944252,1781314261000,-200.0,8.66e-05,2]
[424944251,1781314261000,-663.07,8.608e-05,2]
[424944248,1781314261000,-945.31538218,8.59e-05,2]
[424944249,1781314261000,-500.0,8.592e-05,2]